[Event "*** Titled Tuesday Blitz"]
[Site "Chess.com"]
[Date "2021.03.30"]
[Round "11"]
[White "frenchpin"]
[Black "biveklama"]
[Result "1-0"]
[WhiteElo "2528"]
[BlackElo "2370"]
[TimeControl "180+1"]
[EndTime "12:06:19 PDT"]
[Termination "frenchpin won on time"]

1. e4 {[%clk 0:03:00.9]} 1... e5 {[%clk 0:02:57.8]} 2. Nf3 {[%clk 0:03:00.9]}
2... Nc6 {[%clk 0:02:55.2]} 3. Bc4 {[%clk 0:03:01.2]} 3... Nf6 {[%clk
0:02:51.7]} 4. Ng5 {[%clk 0:03:00.9]} 4... d5 {[%clk 0:02:51.4]} 5. exd5 {[%clk
0:03:01.8]} 5... Nxd5 {[%clk 0:02:51.6]} 6. d4 {[%clk 0:03:00.4]} 6... exd4
{[%clk 0:02:15.3]} 7. O-O {[%clk 0:02:58.6]} 7... Be7 {[%clk 0:02:11.9]} 8. Nxf7
{[%clk 0:02:56.3]} 8... Kxf7 {[%clk 0:02:06.5]} 9. Qf3+ {[%clk 0:02:55.3]} 9...
Bf6 {[%clk 0:01:46.7]} 10. Bxd5+ {[%clk 0:02:53.1]} 10... Kf8 {[%clk 0:01:47]}
11. Nd2 {[%clk 0:02:34.5]} 11... Ne5 {[%clk 0:01:35.7]} 12. Qe4 {[%clk
0:02:32.7]} 12... c6 {[%clk 0:01:32.1]} 13. Bb3 {[%clk 0:02:31.5]} 13... g6
{[%clk 0:01:26.8]} 14. Nf3 {[%clk 0:02:18.8]} 14... Bf5 {[%clk 0:01:22.3]} 15.
Bh6+ {[%clk 0:02:18.4]} 15... Ke7 {[%clk 0:01:14.1]} 16. Qe2 {[%clk 0:02:14.8]}
16... Bg4 {[%clk 0:01:10.4]} 17. Qe4 {[%clk 0:02:01.6]} 17... Bf5 {[%clk
0:01:00.5]} 18. Qe1 {[%clk 0:02:00.5]} 18... Qd6 {[%clk 0:00:50.1]} 19. Bf4
{[%clk 0:01:59.5]} 19... Rae8 {[%clk 0:00:38.5]} 20. Nxe5 {[%clk 0:01:49.7]} 1-0

[Event "*** Titled Tuesday Blitz"]
[Site "Chess.com"]
[Date "2021.03.30"]
[Round "11"]
[White "beto-betun"]
[Black "gxbg2000"]
[Result "1-0"]
[WhiteElo "2221"]
[BlackElo "1933"]
[TimeControl "180+1"]
[EndTime "12:06:21 PDT"]
[Termination "beto-betun won by resignation"]

1. d4 {[%clk 0:03:00.9]} 1... d5 {[%clk 0:02:59.4]} 2. Nf3 {[%clk 0:03:01]} 2...
c6 {[%clk 0:02:59.5]} 3. g3 {[%clk 0:03:00.9]} 3... Nf6 {[%clk 0:02:59.7]} 4.
Bg2 {[%clk 0:03:00.8]} 4... g6 {[%clk 0:03:00.2]} 5. O-O {[%clk 0:03:00.3]} 5...
Bg7 {[%clk 0:03:00.9]} 6. c4 {[%clk 0:02:54.3]} 6... O-O {[%clk 0:03:01.1]} 7.
b3 {[%clk 0:02:54.8]} 7... Bg4 {[%clk 0:03:00.3]} 8. Bb2 {[%clk 0:02:55]} 8...
e6 {[%clk 0:03:00]} 9. Nbd2 {[%clk 0:02:55]} 9... Bxf3 {[%clk 0:03:00.1]} 10.
Bxf3 {[%clk 0:02:40.8]} 10... Nbd7 {[%clk 0:02:59.6]} 11. e4 {[%clk 0:02:36.8]}
11... Nxe4 {[%clk 0:02:59.4]} 12. Nxe4 {[%clk 0:02:37.7]} 12... dxe4 {[%clk
0:02:59.5]} 13. Bxe4 {[%clk 0:02:37.9]} 13... Nf6 {[%clk 0:03:00.1]} 14. Bg2
{[%clk 0:02:34.8]} 14... Qc7 {[%clk 0:03:00.6]} 15. Qf3 {[%clk 0:02:27.9]} 15...
Rad8 {[%clk 0:02:59.5]} 16. Rad1 {[%clk 0:02:25.1]} 16... Qa5 {[%clk 0:02:47.5]}
17. Bc3 {[%clk 0:02:15.4]} 17... Qf5 {[%clk 0:02:43.1]} 18. Qe3 {[%clk
0:02:12.8]} 18... Ng4 {[%clk 0:02:39.3]} 19. Qc1 {[%clk 0:02:10.1]} 19... h5
{[%clk 0:02:32.3]} 20. h3 {[%clk 0:02:07.9]} 20... Nh6 {[%clk 0:02:22.3]} 21.
Rfe1 {[%clk 0:02:06.1]} 21... Qf6 {[%clk 0:02:18.6]} 22. Bd2 {[%clk 0:01:48.4]}
22... Nf5 {[%clk 0:02:14.6]} 23. Bg5 {[%clk 0:01:45.9]} 23... Qxd4 {[%clk
0:01:57.5]} 24. Rxd4 {[%clk 0:01:39.5]} 24... Rxd4 {[%clk 0:01:57.1]} 25. Be3
{[%clk 0:01:32.3]} 25... Rd7 {[%clk 0:01:53.4]} 26. Rd1 {[%clk 0:01:27.9]} 26...
Rc7 {[%clk 0:01:51.4]} 27. Bxa7 {[%clk 0:01:24.8]} 27... c5 {[%clk 0:01:48.9]}
28. Bb6 {[%clk 0:01:22.8]} 28... Rcc8 {[%clk 0:01:48.3]} 29. Rd7 {[%clk
0:01:19.9]} 29... Bd4 {[%clk 0:01:42.2]} 30. g4 {[%clk 0:01:17.5]} 30... hxg4
{[%clk 0:01:41.5]} 31. hxg4 {[%clk 0:01:18.4]} 31... Nh4 {[%clk 0:01:41.4]} 32.
Be4 {[%clk 0:01:16.4]} 32... Ra8 {[%clk 0:01:27]} 33. Qh6 {[%clk 0:01:13.1]}
33... Rxa2 {[%clk 0:01:21.8]} 34. Rxd4 {[%clk 0:01:01.7]} 34... Nf3+ {[%clk
0:01:20.1]} 35. Bxf3 {[%clk 0:01:00.3]} 1-0

[Event "*** Titled Tuesday Blitz"]
[Site "Chess.com"]
[Date "2021.03.30"]
[Round "11"]
[White "mac0504"]
[Black "aunqa"]
[Result "1-0"]
[WhiteElo "2462"]
[BlackElo "2294"]
[TimeControl "180+1"]
[EndTime "12:06:39 PDT"]
[Termination "mac0504 won by resignation"]

1. e4 {[%clk 0:03:00.9]} 1... c5 {[%clk 0:02:59.3]} 2. Nf3 {[%clk 0:03:00.9]}
2... e6 {[%clk 0:02:58.9]} 3. d4 {[%clk 0:03:01.2]} 3... cxd4 {[%clk 0:02:58.7]}
4. Nxd4 {[%clk 0:03:02.1]} 4... a6 {[%clk 0:02:59.2]} 5. c4 {[%clk 0:03:01.8]}
5... Qc7 {[%clk 0:02:58.1]} 6. Nc3 {[%clk 0:03:01.6]} 6... d6 {[%clk 0:02:57.4]}
7. Be2 {[%clk 0:02:59.7]} 7... Nf6 {[%clk 0:02:57]} 8. O-O {[%clk 0:02:59.7]}
8... Nc6 {[%clk 0:02:56.5]} 9. Nc2 {[%clk 0:02:56.2]} 9... g6 {[%clk 0:02:55.7]}
10. Bf4 {[%clk 0:02:34.9]} 10... Ne5 {[%clk 0:02:51.4]} 11. Qd2 {[%clk
0:02:15.4]} 11... Bd7 {[%clk 0:02:41.7]} 12. Rad1 {[%clk 0:02:10.9]} 12... Bc6
{[%clk 0:02:41.4]} 13. f3 {[%clk 0:02:02.8]} 13... h5 {[%clk 0:02:36.1]} 14. Nd4
{[%clk 0:01:49.8]} 14... Be7 {[%clk 0:02:19.9]} 15. b3 {[%clk 0:01:42.8]} 15...
h4 {[%clk 0:02:18.3]} 16. Nxc6 {[%clk 0:01:29.1]} 16... Qxc6 {[%clk 0:02:17.9]}
17. Be3 {[%clk 0:01:16.7]} 17... Rd8 {[%clk 0:01:52.8]} 18. h3 {[%clk
0:01:14.6]} 18... Nh5 {[%clk 0:01:51.3]} 19. f4 {[%clk 0:01:12.9]} 19... Nd7
{[%clk 0:01:50.7]} 20. Bxh5 {[%clk 0:01:08.2]} 20... Rxh5 {[%clk 0:01:50.1]} 21.
f5 {[%clk 0:01:09.1]} 21... gxf5 {[%clk 0:01:38.4]} 22. exf5 {[%clk 0:01:10]}
22... Ne5 {[%clk 0:01:37.4]} 23. Qe2 {[%clk 0:01:05.8]} 23... Rh8 {[%clk
0:01:34.7]} 24. Bd4 {[%clk 0:01:02.4]} 24... Rg8 {[%clk 0:01:26.1]} 25. fxe6
{[%clk 0:00:58.7]} 25... fxe6 {[%clk 0:01:24.1]} 26. Bxe5 {[%clk 0:00:58.9]}
26... Qc5+ {[%clk 0:01:12.5]} 27. Bd4 {[%clk 0:00:55.4]} 27... Qg5 {[%clk
0:01:12.2]} 28. Ne4 {[%clk 0:00:53]} 28... Qg6 {[%clk 0:01:11.5]} 29. Nf6+
{[%clk 0:00:48.9]} 29... Bxf6 {[%clk 0:01:07.5]} 30. Rxf6 {[%clk 0:00:49.8]} 1-0

[Event "*** Titled Tuesday Blitz"]
[Site "Chess.com"]
[Date "2021.03.30"]
[Round "11"]
[White "Volodar_Murzin"]
[Black "szachuspl"]
[Result "1-0"]
[WhiteElo "2773"]
[BlackElo "2569"]
[TimeControl "180+1"]
[EndTime "12:06:51 PDT"]
[Termination "Volodar_Murzin won by resignation"]

1. e4 {[%clk 0:03:00.9]} 1... c5 {[%clk 0:02:59.9]} 2. Nf3 {[%clk 0:03:00]} 2...
e6 {[%clk 0:03:00.2]} 3. g3 {[%clk 0:02:55.5]} 3... Nc6 {[%clk 0:03:00.1]} 4.
Bg2 {[%clk 0:02:55.2]} 4... Nf6 {[%clk 0:03:00.7]} 5. Qe2 {[%clk 0:02:55.5]}
5... d5 {[%clk 0:02:59]} 6. exd5 {[%clk 0:02:51.1]} 6... Nxd5 {[%clk 0:02:59.2]}
7. O-O {[%clk 0:02:51.4]} 7... Be7 {[%clk 0:02:59.8]} 8. Rd1 {[%clk 0:02:51.4]}
8... O-O {[%clk 0:02:59.8]} 9. d4 {[%clk 0:02:51.4]} 9... cxd4 {[%clk
0:02:56.6]} 10. Nxd4 {[%clk 0:02:51.3]} 10... Nxd4 {[%clk 0:02:57]} 11. Rxd4
{[%clk 0:02:51.1]} 11... Bf6 {[%clk 0:02:57.5]} 12. Rd1 {[%clk 0:02:50.2]} 12...
Qb6 {[%clk 0:02:56.1]} 13. c4 {[%clk 0:02:49.9]} 13... Ne7 {[%clk 0:02:50.2]}
14. Nc3 {[%clk 0:02:41.4]} 14... a6 {[%clk 0:02:43.4]} 15. Ne4 {[%clk
0:02:37.7]} 15... Bd4 {[%clk 0:02:39.4]} 16. Rb1 {[%clk 0:02:02.7]} 16... e5
{[%clk 0:02:35]} 17. b4 {[%clk 0:01:57.6]} 17... Be6 {[%clk 0:02:32.3]} 18. a4
{[%clk 0:01:51.8]} 18... Rfd8 {[%clk 0:02:17.4]} 19. c5 {[%clk 0:01:49.8]} 19...
Qc7 {[%clk 0:02:17.5]} 20. Be3 {[%clk 0:01:32.6]} 20... Bxe3 {[%clk 0:02:08.5]}
21. Qxe3 {[%clk 0:01:26.3]} 21... Nf5 {[%clk 0:02:08.7]} 22. Qe1 {[%clk
0:01:24]} 22... Nd4 {[%clk 0:02:03.9]} 23. Nd6 {[%clk 0:01:22.5]} 23... Bg4
{[%clk 0:01:49.8]} 24. Rd3 {[%clk 0:00:53.6]} 24... Qe7 {[%clk 0:00:58.5]} 25.
Rxd4 {[%clk 0:00:51.6]} 1-0

[Event "*** Titled Tuesday Blitz"]
[Site "Chess.com"]
[Date "2021.03.30"]
[Round "11"]
[White "korbul"]
[Black "2nd_life"]
[Result "1-0"]
[WhiteElo "2582"]
[BlackElo "2420"]
[TimeControl "180+1"]
[EndTime "12:06:51 PDT"]
[Termination "korbul won by checkmate"]

1. d4 {[%clk 0:03:00.9]} 1... Nf6 {[%clk 0:02:59.8]} 2. Nf3 {[%clk 0:03:00.8]}
2... e6 {[%clk 0:03:00.1]} 3. Bf4 {[%clk 0:03:00.1]} 3... Bd6 {[%clk 0:02:58.3]}
4. Bxd6 {[%clk 0:02:59.4]} 4... cxd6 {[%clk 0:02:58.4]} 5. e3 {[%clk 0:02:59.7]}
5... b6 {[%clk 0:02:57.7]} 6. c4 {[%clk 0:02:59.5]} 6... Bb7 {[%clk 0:02:51.6]}
7. Nc3 {[%clk 0:02:59.4]} 7... d5 {[%clk 0:02:48.9]} 8. cxd5 {[%clk 0:02:56.7]}
8... Nxd5 {[%clk 0:02:48.6]} 9. Nxd5 {[%clk 0:02:54.1]} 9... Bxd5 {[%clk
0:02:48.1]} 10. Bd3 {[%clk 0:02:53.7]} 10... O-O {[%clk 0:02:46.5]} 11. O-O
{[%clk 0:02:53.2]} 11... Bxf3 {[%clk 0:02:41.5]} 12. Qxf3 {[%clk 0:02:52.1]}
12... d5 {[%clk 0:02:41.3]} 13. Rfc1 {[%clk 0:02:49.6]} 13... Nd7 {[%clk
0:02:36.4]} 14. Ba6 {[%clk 0:02:46.4]} 14... Nf6 {[%clk 0:02:26.8]} 15. Rc2
{[%clk 0:02:45.5]} 15... Qd7 {[%clk 0:02:21.6]} 16. Qe2 {[%clk 0:02:39.3]} 16...
Rab8 {[%clk 0:02:10]} 17. a4 {[%clk 0:02:25.4]} 17... Qd6 {[%clk 0:02:04.8]} 18.
Rac1 {[%clk 0:02:23.3]} 18... h5 {[%clk 0:02:02.9]} 19. h3 {[%clk 0:02:22.2]}
19... g6 {[%clk 0:01:58.7]} 20. Rc7 {[%clk 0:02:20.1]} 20... Qb4 {[%clk
0:01:54.9]} 21. Qb5 {[%clk 0:02:10]} 21... Qd2 {[%clk 0:01:40.4]} 22. R7c2
{[%clk 0:02:06]} 22... Qa5 {[%clk 0:01:37.8]} 23. b4 {[%clk 0:02:04.2]} 23...
Qxb5 {[%clk 0:01:37.3]} 24. axb5 {[%clk 0:02:05.1]} 24... Ne8 {[%clk 0:01:33.7]}
25. Rc6 {[%clk 0:02:02]} 25... Kg7 {[%clk 0:01:31.5]} 26. f3 {[%clk 0:02:01.6]}
26... Kf6 {[%clk 0:01:30.4]} 27. e4 {[%clk 0:02:01.3]} 27... dxe4 {[%clk
0:01:28.6]} 28. fxe4 {[%clk 0:02:01]} 28... Rd8 {[%clk 0:01:28.1]} 29. R1c4
{[%clk 0:02:00.1]} 29... Ke7 {[%clk 0:01:27.1]} 30. e5 {[%clk 0:01:58.6]} 30...
f6 {[%clk 0:01:23.9]} 31. Bc8 {[%clk 0:01:53.4]} 31... Rxc8 {[%clk 0:01:02.5]}
32. Rxc8 {[%clk 0:01:50.7]} 32... fxe5 {[%clk 0:01:02.9]} 33. dxe5 {[%clk
0:01:50.4]} 33... Rf5 {[%clk 0:01:03.3]} 34. Ra8 {[%clk 0:01:38]} 34... Rxe5
{[%clk 0:01:02.6]} 35. Rxa7+ {[%clk 0:01:38.1]} 35... Kf6 {[%clk 0:01:02.4]} 36.
Rf4+ {[%clk 0:01:27.6]} 36... Kg5 {[%clk 0:01:00.1]} 37. g3 {[%clk 0:01:21.5]}
37... Nd6 {[%clk 0:00:49.9]} 38. h4+ {[%clk 0:01:18.4]} 38... Kh6 {[%clk
0:00:49.5]} 39. Rf8 {[%clk 0:01:17.2]} 39... g5 {[%clk 0:00:49]} 40. Rf6# {[%clk
0:01:15.1]} 1-0

[Event "*** Titled Tuesday Blitz"]
[Site "Chess.com"]
[Date "2021.03.30"]
[Round "11"]
[White "Carnivoras"]
[Black "KacperPolOK"]
[Result "1-0"]
[WhiteElo "2578"]
[BlackElo "2436"]
[TimeControl "180+1"]
[EndTime "12:07:08 PDT"]
[Termination "Carnivoras won by resignation"]

1. d4 {[%clk 0:03:00.9]} 1... Nf6 {[%clk 0:02:57.1]} 2. c4 {[%clk 0:03:01.5]}
2... e5 {[%clk 0:02:57.1]} 3. dxe5 {[%clk 0:02:55.4]} 3... Ng4 {[%clk
0:02:57.4]} 4. Bf4 {[%clk 0:02:54.9]} 4... Nc6 {[%clk 0:02:56.9]} 5. Nf3 {[%clk
0:02:54.8]} 5... Bb4+ {[%clk 0:02:56.6]} 6. Nbd2 {[%clk 0:02:53.3]} 6... Qe7
{[%clk 0:02:51]} 7. e3 {[%clk 0:02:51]} 7... Ngxe5 {[%clk 0:02:49.3]} 8. Be2
{[%clk 0:02:51.1]} 8... d6 {[%clk 0:02:46.8]} 9. O-O {[%clk 0:02:50.9]} 9...
Bxd2 {[%clk 0:02:46.1]} 10. Nxd2 {[%clk 0:02:47.3]} 10... O-O {[%clk 0:02:38.3]}
11. a3 {[%clk 0:02:45.5]} 11... h6 {[%clk 0:02:34.6]} 12. b4 {[%clk 0:02:39.4]}
12... Ng6 {[%clk 0:02:34]} 13. Bg3 {[%clk 0:02:39]} 13... f5 {[%clk 0:02:34.1]}
14. Rc1 {[%clk 0:02:38]} 14... Nce5 {[%clk 0:02:29.3]} 15. c5 {[%clk 0:02:37.3]}
15... d5 {[%clk 0:02:25]} 16. Nf3 {[%clk 0:02:33.2]} 16... c6 {[%clk 0:02:23.4]}
17. Qd4 {[%clk 0:02:28]} 17... Nxf3+ {[%clk 0:02:21.5]} 18. Bxf3 {[%clk
0:02:27.9]} 18... Be6 {[%clk 0:02:21.8]} 19. Bd6 {[%clk 0:02:27.4]} 19... Qf7
{[%clk 0:02:17.1]} 20. Bxf8 {[%clk 0:02:27.5]} 20... Rxf8 {[%clk 0:02:18]} 21.
Rb1 {[%clk 0:02:26.8]} 21... f4 {[%clk 0:02:09.9]} 22. b5 {[%clk 0:02:18.6]}
22... Nh4 {[%clk 0:02:05.9]} 23. Qxf4 {[%clk 0:01:57.1]} 23... Qxf4 {[%clk
0:01:53.4]} 24. exf4 {[%clk 0:01:55]} 24... Nxf3+ {[%clk 0:01:53.6]} 25. gxf3
{[%clk 0:01:55.9]} 25... Rxf4 {[%clk 0:01:52.9]} 26. Kg2 {[%clk 0:01:56.2]}
26... d4 {[%clk 0:01:50.7]} 27. Rfe1 {[%clk 0:01:48.7]} 27... Bd5 {[%clk
0:01:49.8]} 28. bxc6 {[%clk 0:01:47.7]} 28... bxc6 {[%clk 0:01:49.8]} 29. Re5
{[%clk 0:01:42.9]} 29... Kh7 {[%clk 0:01:34.7]} 30. Rc1 {[%clk 0:01:31.4]} 30...
d3 {[%clk 0:01:34.7]} 31. Re3 {[%clk 0:01:26.3]} 31... Rd4 {[%clk 0:01:30.7]}
32. Rd1 {[%clk 0:01:25.5]} 32... Bc4 {[%clk 0:01:29.3]} 33. Re4 {[%clk
0:01:22.3]} 33... Rxe4 {[%clk 0:01:23.5]} 34. fxe4 {[%clk 0:01:23.2]} 34... Kg6
{[%clk 0:01:24.3]} 35. f4 {[%clk 0:01:23]} 35... Kf6 {[%clk 0:01:23.1]} 36. Kf3
{[%clk 0:01:23.5]} 36... g5 {[%clk 0:01:23.2]} 37. f5 {[%clk 0:01:21.9]} 37...
Ke5 {[%clk 0:01:23.3]} 38. Ke3 {[%clk 0:01:22]} 38... h5 {[%clk 0:01:22.9]} 39.
Rxd3 {[%clk 0:01:20.7]} 39... Bxd3 {[%clk 0:01:21.2]} 40. Kxd3 {[%clk
0:01:21.6]} 40... a6 {[%clk 0:01:14.5]} 41. Ke3 {[%clk 0:01:20]} 41... a5 {[%clk
0:01:14.1]} 42. a4 {[%clk 0:01:20.2]} 42... g4 {[%clk 0:01:11.5]} 43. Ke2 {[%clk
0:01:14.9]} 43... h4 {[%clk 0:01:10.4]} 44. Ke3 {[%clk 0:01:13.3]} 44... Kf6
{[%clk 0:00:52.9]} 45. Kf4 {[%clk 0:01:13.2]} 45... g3 {[%clk 0:00:53.5]} 46.
hxg3 {[%clk 0:01:13.7]} 46... h3 {[%clk 0:00:54.2]} 47. Kf3 {[%clk 0:01:14.3]}
1-0

[Event "*** Titled Tuesday Blitz"]
[Site "Chess.com"]
[Date "2021.03.30"]
[Round "11"]
[White "GigaQuparadze"]
[Black "superchess02"]
[Result "0-1"]
[WhiteElo "2885"]
[BlackElo "2828"]
[TimeControl "180+1"]
[EndTime "12:07:16 PDT"]
[Termination "superchess02 won by checkmate"]

1. e4 {[%clk 0:03:00.9]} 1... a6 {[%clk 0:03:00.9]} 2. d4 {[%clk 0:03:00.5]}
2... b5 {[%clk 0:03:01]} 3. Bd3 {[%clk 0:02:54.2]} 3... Bb7 {[%clk 0:03:01.3]}
4. Qe2 {[%clk 0:02:50.7]} 4... e6 {[%clk 0:03:00.8]} 5. Nf3 {[%clk 0:02:46.3]}
5... c5 {[%clk 0:03:00.8]} 6. dxc5 {[%clk 0:02:44.9]} 6... Bxc5 {[%clk
0:03:00.2]} 7. O-O {[%clk 0:02:45.5]} 7... d6 {[%clk 0:03:00.1]} 8. Nbd2 {[%clk
0:02:45.8]} 8... Nd7 {[%clk 0:02:56.3]} 9. Nb3 {[%clk 0:02:44.4]} 9... Bb6
{[%clk 0:02:56.1]} 10. a4 {[%clk 0:02:42.5]} 10... bxa4 {[%clk 0:02:51.4]} 11.
Rxa4 {[%clk 0:02:43.4]} 11... a5 {[%clk 0:02:50.4]} 12. Bb5 {[%clk 0:02:43.4]}
12... Qc7 {[%clk 0:02:44.8]} 13. Rd1 {[%clk 0:02:38.4]} 13... Rd8 {[%clk
0:02:42]} 14. Bf4 {[%clk 0:02:36.7]} 14... e5 {[%clk 0:02:41.6]} 15. Rc4 {[%clk
0:02:35.7]} 15... Qb8 {[%clk 0:02:41.2]} 16. Bg5 {[%clk 0:02:31.5]} 16... f6
{[%clk 0:02:37.4]} 17. Be3 {[%clk 0:02:31.4]} 17... Bxe3 {[%clk 0:02:35.8]} 18.
Qxe3 {[%clk 0:02:32.3]} 18... Ne7 {[%clk 0:02:33.4]} 19. Nxa5 {[%clk 0:02:31.7]}
19... d5 {[%clk 0:02:27.6]} 20. exd5 {[%clk 0:02:25.4]} 20... Bxd5 {[%clk
0:02:27.3]} 21. Rb4 {[%clk 0:02:25.5]} 21... O-O {[%clk 0:02:24.1]} 22. Qa3
{[%clk 0:02:21.5]} 22... Qa8 {[%clk 0:02:16.1]} 23. Ra1 {[%clk 0:01:37.7]} 23...
Kh8 {[%clk 0:02:08.5]} 24. Nc4 {[%clk 0:01:36.4]} 24... Bxf3 {[%clk 0:02:04.7]}
25. gxf3 {[%clk 0:01:33.6]} 25... Qd5 {[%clk 0:02:02.5]} 26. Bxd7 {[%clk
0:01:21.7]} 26... Qxd7 {[%clk 0:02:01.2]} 27. Qa7 {[%clk 0:01:21.5]} 27... Qe8
{[%clk 0:01:59]} 28. Ne3 {[%clk 0:01:19.8]} 28... Nc6 {[%clk 0:01:58]} 29. Qa4
{[%clk 0:01:18.4]} 29... Nxb4 {[%clk 0:01:56.2]} 30. Qxb4 {[%clk 0:01:19.3]}
30... Rb8 {[%clk 0:01:53.7]} 31. Qc3 {[%clk 0:01:08.2]} 31... Qg6+ {[%clk
0:01:53.4]} 32. Kh1 {[%clk 0:01:08.1]} 32... Rfc8 {[%clk 0:01:51.9]} 33. Qa3
{[%clk 0:01:07.7]} 33... Qh5 {[%clk 0:01:51.5]} 34. Kg2 {[%clk 0:01:06.8]} 34...
Qg5+ {[%clk 0:01:47.5]} 35. Kh1 {[%clk 0:01:06.7]} 35... Qf4 {[%clk 0:01:47.6]}
36. Kg2 {[%clk 0:01:07]} 36... e4 {[%clk 0:01:45.9]} 37. fxe4 {[%clk 0:01:06.7]}
37... Qxe4+ {[%clk 0:01:46.3]} 38. Kg1 {[%clk 0:01:00.5]} 38... Rb5 {[%clk
0:01:46.3]} 39. Nf1 {[%clk 0:00:57.8]} 39... h5 {[%clk 0:01:41.3]} 40. Ng3
{[%clk 0:00:57.8]} 40... Qxc2 {[%clk 0:01:40.1]} 41. Qe7 {[%clk 0:00:50.9]}
41... h4 {[%clk 0:01:35.8]} 42. Ra7 {[%clk 0:00:50.4]} 42... Rg5 {[%clk
0:01:34.9]} 43. b4 {[%clk 0:00:45.4]} 43... Qd1+ {[%clk 0:01:25.6]} 44. Kg2
{[%clk 0:00:45.3]} 44... Qd5+ {[%clk 0:01:26.2]} 45. Kh3 {[%clk 0:00:43.9]}
45... hxg3 {[%clk 0:01:26.3]} 46. hxg3 {[%clk 0:00:37.4]} 46... Qh1# {[%clk
0:01:24.7]} 0-1

[Event "*** Titled Tuesday Blitz"]
[Site "Chess.com"]
[Date "2021.03.30"]
[Round "11"]
[White "sokidze"]
[Black "MPGM"]
[Result "1/2-1/2"]
[WhiteElo "2758"]
[BlackElo "2592"]
[TimeControl "180+1"]
[EndTime "12:07:18 PDT"]
[Termination "Game drawn by agreement"]

1. d4 {[%clk 0:03:00.9]} 1... Nf6 {[%clk 0:02:58.5]} 2. g3 {[%clk 0:03:01.1]}
2... d5 {[%clk 0:02:55.6]} 3. Nf3 {[%clk 0:03:00.3]} 3... e6 {[%clk 0:02:55.5]}
4. Bg2 {[%clk 0:03:00.1]} 4... b5 {[%clk 0:02:52]} 5. O-O {[%clk 0:02:59.7]}
5... Bb7 {[%clk 0:02:52]} 6. a4 {[%clk 0:02:59.7]} 6... b4 {[%clk 0:02:51.6]} 7.
c4 {[%clk 0:03:00.2]} 7... bxc3 {[%clk 0:02:49.6]} 8. Nxc3 {[%clk 0:02:59.2]}
8... Be7 {[%clk 0:02:47.9]} 9. Bf4 {[%clk 0:02:58.8]} 9... c6 {[%clk 0:02:43.6]}
10. a5 {[%clk 0:02:42.6]} 10... Ba6 {[%clk 0:02:39.7]} 11. Qa4 {[%clk
0:02:39.9]} 11... O-O {[%clk 0:02:34.9]} 12. Ne5 {[%clk 0:02:38.5]} 12... Qc8
{[%clk 0:02:28.3]} 13. b4 {[%clk 0:02:19.2]} 13... Nfd7 {[%clk 0:02:15.4]} 14.
Rfc1 {[%clk 0:01:32.5]} 14... Nxe5 {[%clk 0:02:13.4]} 15. Bxe5 {[%clk
0:01:23.7]} 15... Qb7 {[%clk 0:02:11.4]} 16. Rcb1 {[%clk 0:01:12.6]} 16... Bb5
{[%clk 0:02:02.5]} 17. Nxb5 {[%clk 0:01:11.7]} 17... cxb5 {[%clk 0:02:03]} 18.
a6 {[%clk 0:01:12.1]} 18... Qb6 {[%clk 0:01:54.1]} 19. Qa5 {[%clk 0:01:03.5]}
19... Nc6 {[%clk 0:01:51.9]} 20. Qxb6 {[%clk 0:00:53.9]} 20... axb6 {[%clk
0:01:52.8]} 21. e3 {[%clk 0:00:52.6]} 21... Nxb4 {[%clk 0:01:48.9]} 22. a7
{[%clk 0:00:46.6]} 22... Nc6 {[%clk 0:01:41.3]} 23. Rxb5 {[%clk 0:00:44.7]}
23... Nxe5 {[%clk 0:01:28.8]} 24. dxe5 {[%clk 0:00:43.2]} 24... Bc5 {[%clk
0:01:29.1]} 25. Bf1 {[%clk 0:00:27.9]} 25... Rfc8 {[%clk 0:01:26.2]} 26. Rb2
{[%clk 0:00:22.3]} 26... Rc7 {[%clk 0:01:16.2]} 27. Rba2 {[%clk 0:00:22.5]}
27... b5 {[%clk 0:01:07]} 28. Bxb5 {[%clk 0:00:21.5]} 28... Rcxa7 {[%clk
0:01:07.1]} 29. Rxa7 {[%clk 0:00:19]} 29... Rxa7 {[%clk 0:01:07.2]} 30. Rxa7
{[%clk 0:00:12.2]} 30... Bxa7 {[%clk 0:01:06.3]} 31. Kg2 {[%clk 0:00:12.7]}
1/2-1/2

[Event "*** Titled Tuesday Blitz"]
[Site "Chess.com"]
[Date "2021.03.30"]
[Round "11"]
[White "marianokar"]
[Black "Trickov"]
[Result "1/2-1/2"]
[WhiteElo "2504"]
[BlackElo "2419"]
[TimeControl "180+1"]
[EndTime "12:07:18 PDT"]
[Termination "Game drawn by repetition"]

1. e4 {[%clk 0:03:00.9]} 1... c5 {[%clk 0:02:58.6]} 2. Nf3 {[%clk 0:03:00.4]}
2... d6 {[%clk 0:02:57.8]} 3. Bc4 {[%clk 0:02:54.3]} 3... Nf6 {[%clk 0:02:55.2]}
4. d3 {[%clk 0:02:54.6]} 4... g6 {[%clk 0:02:53.9]} 5. O-O {[%clk 0:02:53.4]}
5... Bg7 {[%clk 0:02:53.8]} 6. c3 {[%clk 0:02:54]} 6... O-O {[%clk 0:02:53.2]}
7. Bb3 {[%clk 0:02:54.5]} 7... Nc6 {[%clk 0:02:52]} 8. Re1 {[%clk 0:02:55]} 8...
e5 {[%clk 0:02:50.9]} 9. Nbd2 {[%clk 0:02:51.1]} 9... Be6 {[%clk 0:02:48.7]} 10.
Nf1 {[%clk 0:02:50.4]} 10... d5 {[%clk 0:02:42.6]} 11. Bg5 {[%clk 0:02:47.6]}
11... dxe4 {[%clk 0:02:35.5]} 12. Bxf6 {[%clk 0:02:42.1]} 12... Qxf6 {[%clk
0:02:30.3]} 13. dxe4 {[%clk 0:02:26.6]} 13... c4 {[%clk 0:02:24.6]} 14. Bc2
{[%clk 0:02:26.3]} 14... Rfd8 {[%clk 0:02:16.8]} 15. Qe2 {[%clk 0:02:25.6]}
15... b5 {[%clk 0:02:08.7]} 16. Rad1 {[%clk 0:02:22.9]} 16... a6 {[%clk
0:02:05.3]} 17. Ne3 {[%clk 0:02:22.6]} 17... Qe7 {[%clk 0:01:51.8]} 18. Nd5
{[%clk 0:02:20.3]} 18... Qa7 {[%clk 0:01:41.5]} 19. b3 {[%clk 0:02:19]} 19...
cxb3 {[%clk 0:01:38.3]} 20. Bxb3 {[%clk 0:02:18.4]} 20... Rac8 {[%clk
0:01:37.4]} 21. Ng5 {[%clk 0:02:13.9]} 21... Na5 {[%clk 0:01:18.9]} 22. Nxe6
{[%clk 0:01:40.6]} 22... fxe6 {[%clk 0:01:17.6]} 23. Nb4 {[%clk 0:01:41.5]}
23... Nxb3 {[%clk 0:01:16.9]} 24. axb3 {[%clk 0:01:41.3]} 24... Rxd1 {[%clk
0:01:14.1]} 25. Rxd1 {[%clk 0:01:40.8]} 25... Rxc3 {[%clk 0:01:13.6]} 26. Rd8+
{[%clk 0:01:38.4]} 26... Bf8 {[%clk 0:01:12.2]} 27. Nd3 {[%clk 0:01:12.8]} 27...
Qe7 {[%clk 0:01:09.6]} 28. Ra8 {[%clk 0:01:09.5]} 28... Qd6 {[%clk 0:01:05.5]}
29. Ne1 {[%clk 0:00:59]} 29... Rc1 {[%clk 0:01:04.3]} 30. h4 {[%clk 0:00:53.5]}
30... Qc6 {[%clk 0:01:02.5]} 31. Rd8 {[%clk 0:00:46.3]} 31... Qc7 {[%clk
0:01:02.4]} 32. Ra8 {[%clk 0:00:26.6]} 32... Qc6 {[%clk 0:01:02.3]} 33. Rd8
{[%clk 0:00:25.9]} 33... Qc7 {[%clk 0:01:02.5]} 34. Ra8 {[%clk 0:00:24.1]} 34...
Qc6 {[%clk 0:01:02.4]} 1/2-1/2